bitfinex/quotes_ETHUSD_20251010
["timestamp","ask_amount","ask_price","bid_price","bid_amount"]
[1760097364899,0.0029,4353.1,4352.9,5.37]
[1760097365220,2.3001379,4353.1,4352.9,5.37]
[1760097365784,0.0029,4353.1,4352.9,5.37]
[1760097366529,0.0016,4353.1,4352.9,5.37]
[1760097366889,0.116,4353.1,4352.9,5.37]
[1760097368289,0.116,4353.1,4353.0,0.02297266]
[1760097368494,0.116,4353.1,4353.0,0.48887266]
[1760097369223,0.0016,4353.1,4353.0,0.48887266]
[1760097370624,0.0016,4353.1,4353.0,2.78613891]
[1760097370826,0.0016,4353.1,4353.0,0.48887266]
[1760097370995,0.0016,4353.1,4353.0,1.38594026]
[1760097371191,0.0016,4353.1,4353.0,0.92004026]
[1760097372292,0.0016,4353.1,4353.0,1.38594026]
[1760097373624,0.0016,4353.1,4353.0,3.68320651]
[1760097373837,0.0016,4353.1,4353.0,1.38594026]
[1760097374425,0.0016,4353.1,4353.0,3.68320651]
[1760097374740,0.002,4353.4,4353.3,2.29710794]
[1760097374898,0.002,4353.4,4353.3,7.12207023]
[1760097375236,0.002,4353.4,4353.3,7.56499916]
[1760097375606,0.002,4353.4,4353.3,9.01209916]
[1760097375825,0.002,4353.4,4353.3,9.47799916]
[1760097381316,0.002,4353.4,4353.3,15.45699916]
[1760097383234,0.0012,4353.4,4353.3,15.45699916]
[1760097384626,0.0012,4353.4,4353.3,15.57139916]
[1760097388974,0.0012,4353.4,4353.3,1.45939122]
[1760097389144,0.0012,4353.4,4353.3,8.21880794]
[1760097389839,0.0012,4353.4,4353.3,7.77950794]
[1760097390432,0.0012,4353.4,4353.3,2.41150794]
[1760097390646,0.0012,4353.4,4353.3,7.77950794]
[1760097391641,0.0012,4353.4,4353.3,8.21880794]
[1760097391840,0.0012,4353.4,4353.3,2.85080794]
[1760097392148,0.0012,4353.4,4353.3,8.24277901]
[1760097392472,0.0012,4353.4,4353.3,8.21980794]
[1760097392638,0.0012,4353.4,4353.3,7.78050794]
[1760097393137,0.0012,4353.4,4353.3,8.21980794]
[1760097393336,0.0012,4353.4,4353.3,5.4834]
[1760097393780,0.0012,4353.4,4353.3,7.78050794]
[1760097393981,0.0012,4353.4,4353.3,5.4834]
[1760097394355,0.0012,4353.4,4353.3,7.78050794]
[1760097394879,0.0012,4353.4,4353.3,5.4834]
[1760097395080,0.0012,4353.4,4353.3,7.78050794]
[1760097397375,0.0012,4353.4,4353.3,8.21980794]
[1760097399881,0.0012,4353.4,4353.3,7.78050794]
[1760097400246,0.0012,4353.4,4353.3,5.86750794]
[1760097400448,0.0012,4353.4,4353.3,7.78050794]
[1760097400779,0.0012,4353.4,4353.3,2.41150794]
[1760097400980,0.0012,4353.4,4353.3,8.24277901]
[1760097401180,0.0012,4353.4,4353.3,8.21980794]
[1760097402563,0.0012,4353.4,4353.3,7.78050794]
[1760097403180,0.0012,4353.4,4353.3,8.21980794]
[1760097405373,0.0004,4353.4,4353.3,8.21980794]
[1760097405598,0.0004,4353.4,4353.3,8.91757174]
[1760097406594,0.0004,4353.4,4353.3,3.10927174]
[1760097406891,0.0004,4353.4,4353.3,8.93954281]
[1760097407071,0.0004,4353.4,4353.3,8.91657174]
[1760097413297,0.0004,4353.4,4353.3,3.10927174]
[1760097413475,0.0004,4353.4,4353.3,8.91007174]
[1760097414601,1.88484462,4354.4,4353.7,2.29689689]
[1760097414809,0.1144,4354.2,4353.8,3.455]
[1760097419880,2.41103446,4354.2,4353.8,3.455]
[1760097420392,0.1144,4354.2,4353.8,3.455]
[1760097420918,0.0028,4354.1,4353.8,3.455]
[1760097421079,2.2994863,4354.1,4353.8,3.455]
[1760097421272,0.0028,4354.1,4353.8,3.455]
[1760097421582,2.41104352,4354.2,4353.8,3.455]
[1760097421772,2.41384352,4354.2,4353.8,3.455]
[1760097422196,0.1144,4354.2,4353.8,3.455]
[1760097423082,0.1144,4354.2,4353.9,5.368]
[1760097423812,0.1164,4354.2,4353.9,5.368]
[1760097424174,2.29948588,4354.1,4353.9,5.368]
[1760097424683,0.1164,4354.2,4353.9,5.368]
[1760097425718,0.1164,4354.2,4353.9,5.8403]
[1760097426391,0.1164,4354.2,4353.9,5.368]
[1760097426596,0.1164,4354.2,4353.9,5.8403]
[1760097426898,0.1164,4354.2,4354.0,0.4723]
[1760097427110,0.1164,4354.2,4354.1,3.455]
[1760097427416,0.1156,4354.2,4354.1,3.9273]
[1760097428282,0.1156,4354.2,4354.1,3.95026685]
[1760097428919,0.1156,4354.2,4354.1,3.9273]
[1760097429310,0.1156,4354.2,4353.6,0.1144]
[1760097429486,0.1156,4354.2,4353.7,5.368]
[1760097429487,0.1184,4354.2,4353.7,5.368]
[1760097429885,0.1184,4354.2,4353.6,0.1144]
[1760097430098,0.1156,4354.2,4353.7,5.368]
[1760097430323,2.41228477,4354.2,4353.8,3.455]
[1760097430534,0.0028,4354.1,4353.9,3.455]
[1760097430814,0.0028,4354.1,4354.0,3.455]
[1760097431022,0.1156,4354.2,4354.0,3.455]
[1760097431601,2.29948588,4354.1,4353.4,0.1144]
[1760097431800,2.29954295,4354.0,4353.5,5.368]
[1760097432014,0.0028,4353.9,4353.4,0.1144]
[1760097432189,0.0028,4353.8,4353.6,3.455]
[1760097432817,0.1144,4354.0,4353.6,3.455]
[1760097433044,0.1172,4354.0,4353.6,3.455]
[1760097433402,0.1144,4354.0,4353.6,3.455]
[1760097434603,0.1144,4354.0,4353.7,5.368]
[1760097441640,2.41114493,4354.0,4353.7,5.368]
[1760097442259,2.41394493,4354.0,4353.7,5.368]
[1760097442822,2.41114493,4354.0,4353.7,5.368]
[1760097443559,2.299613,4353.9,4353.6,0.001]
[1760097443863,2.299613,4353.9,4353.8,3.455]
[1760097444362,0.0028,4353.9,4353.6,0.001]
[1760097444670,11.21748013,4353.8,4353.7,5.368]
[1760097444959,11.71374436,4353.8,4353.7,5.368]
[1760097445663,11.71374436,4353.8,4353.6,0.001]
[1760097445664,2.41129689,4353.7,4353.6,0.001]
[1760097445852,2.91026871,4353.7,4353.6,5.369]
[1760097446228,2.41409689,4353.7,4353.6,5.369]
[1760097447164,32.41409689,4353.7,4353.6,0.001]
[1760097447385,39.58347618,4353.7,4353.6,2.013]
[1760097447525,20.79364218,4353.7,4353.6,0.001]
[1760097447731,20.79364218,4353.7,4353.6,0.031]
[1760097448492,8.39443894,4353.7,4353.6,0.031]
[1760097448796,8.39723894,4353.7,4353.6,0.031]
[1760097448995,8.39443894,4353.7,4353.6,0.031]
[1760097449197,8.39723894,4353.7,4353.6,0.031]
[1760097449356,19.83807294,4353.7,4353.6,0.031]
[1760097449760,17.53507294,4353.7,4353.6,0.031]
[1760097450461,25.60457318,4353.7,4353.6,0.031]
[1760097450875,5.46015094,4353.7,4353.6,3.456]
[1760097451079,23.55802394,4353.7,4353.6,3.456]
[1760097451507,5.46295094,4353.7,4353.6,3.456]
[1760097451702,24.98737894,4353.7,4353.6,3.456]
[1760097452000,24.98737894,4353.7,4353.6,3.457]
[1760097452201,24.64986994,4353.7,4353.6,3.457]
[1760097452375,16.39450494,4353.7,4353.6,3.457]
[1760097452573,19.34682394,4353.7,4353.6,3.457]
[1760097453577,27.51321194,4353.7,4353.6,3.457]
[1760097453802,31.63293718,4353.7,4353.6,0.001]
[1760097453994,32.25299264,4353.7,4353.6,0.001]
[1760097454489,9.18267618,4353.7,4353.6,0.001]
[1760097454668,39.80273164,4353.7,4353.6,0.001]
[1760097454870,22.30892894,4353.7,4353.6,0.001]
[1760097455626,35.06295094,4353.7,4353.6,0.001]
[1760097455802,35.18302991,4353.7,4353.6,0.001]
[1760097456392,33.63796491,4353.7,4353.6,0.001]
[1760097456592,5.18302991,4353.7,4353.6,0.001]
[1760097456792,34.24596491,4353.7,4353.6,0.001]
[1760097457443,32.55549091,4353.7,4353.6,0.001]
[1760097457733,34.52881791,4353.7,4353.6,0.001]
[1760097458231,32.52588791,4353.7,4353.6,0.001]
[1760097458818,37.47930615,4353.7,4353.6,0.001]
[1760097459030,33.35958091,4353.7,4353.6,0.001]
[1760097459806,33.38967291,4353.7,4353.6,0.001]
[1760097460627,37.50939815,4353.7,4353.6,0.001]
[1760097460786,39.30275515,4353.7,4353.6,0.001]
[1760097461234,37.36409015,4353.7,4353.6,0.001]
[1760097461396,33.24436491,4353.7,4353.6,0.001]
[1760097461597,32.98904191,4353.7,4353.6,0.001]
[1760097461797,5.18302991,4353.7,4353.6,0.001]
[1760097462097,35.07061991,4353.7,4353.6,0.001]
[1760097462809,34.27849991,4353.7,4353.6,0.001]
[1760097463134,34.27760091,4353.7,4353.6,0.001]
[1760097464026,35.18302991,4353.7,4353.6,0.001]
[1760097464394,39.30275515,4353.7,4353.6,0.001]
[1760097464714,46.40275515,4353.7,4353.6,0.001]
[1760097465506,39.53659391,4353.7,4353.6,0.001]
[1760097465704,38.56230791,4353.7,4353.6,0.001]
[1760097465924,24.48735891,4353.7,4353.6,0.001]
[1760097466118,33.89659891,4353.7,4353.6,0.001]
[1760097467095,42.28302991,4353.7,4353.6,0.001]
[1760097470337,42.90308537,4353.7,4353.6,0.001]
[1760097471536,35.46361437,4353.7,4353.6,0.001]
[1760097471949,33.92986337,4353.7,4353.6,0.001]
[1760097472317,42.28222991,4353.7,4353.6,0.001]
[1760097473305,16.40195515,4353.7,4353.6,0.001]
[1760097473504,42.28222991,4353.7,4353.6,0.001]
[1760097474003,46.40195515,4353.7,4353.6,0.001]
[1760097474347,47.22496697,4353.7,4353.6,0.001]
[1760097474537,37.17736491,4353.7,4353.6,0.001]
[1760097475240,32.89903591,4353.7,4353.6,0.001]
[1760097475435,12.28222991,4353.7,4353.6,0.001]
[1760097475748,42.28222991,4353.7,4353.6,0.001]
[1760097477343,43.10804173,4353.7,4353.6,0.001]
[1760097477534,13.10804173,4353.7,4353.6,0.001]
[1760097477834,43.10804173,4353.7,4353.6,0.001]
[1760097478575,20.33145548,4353.7,4353.6,0.001]
[1760097478750,15.71280448,4353.7,4353.6,0.001]
[1760097478954,15.09225994,4353.7,4353.6,0.001]
[1760097479648,15.17028894,4353.7,4353.6,0.001]
[1760097480451,9.63045405,4353.7,4353.6,0.001]
[1760097480647,11.92735094,4353.7,4353.6,0.001]
[1760097480968,11.93015094,4353.7,4353.6,0.001]
[1760097481469,11.92935094,4353.7,4353.6,0.001]
[1760097481637,31.35250294,4353.7,4353.6,1.915]
[1760097481833,31.35250294,4353.7,4353.6,0.001]
[1760097482075,31.35250294,4353.7,4353.6,5.371]
[1760097482775,32.28036594,4353.7,4353.6,5.371]
[1760097482960,31.98105494,4353.7,4353.6,0.001]
[1760097483163,21.48283294,4353.7,4353.6,0.001]
[1760097483345,20.18331194,4353.7,4353.6,0.001]
[1760097483672,11.93215094,4353.7,4353.6,0.001]
[1760097483865,19.75932194,4353.7,4353.6,0.001]
[1760097484870,43.99788887,4353.7,4353.6,0.001]
[1760097485077,44.82370069,4353.7,4353.6,0.001]
[1760097485261,45.23662923,4353.7,4353.6,0.001]
[1760097485461,45.97084368,4353.7,4353.6,0.001]
[1760097485976,32.29710794,4353.3,4353.2,1e-08]
[1760097486174,39.56710168,4353.3,4353.2,1e-08]
[1760097486542,39.56990168,4353.3,4353.2,1e-08]
[1760097486880,40.20350168,4353.3,4353.2,1e-08]
[1760097487277,2.2971607,4353.2,4353.1,0.001]
[1760097487479,39.07136427,4352.7,4352.6,0.001]
[1760097487678,39.56741832,4352.7,4352.6,0.001]
[1760097487974,39.57021832,4352.7,4352.6,0.001]
[1760097488174,2.93123573,4352.3,4352.2,1e-08]
[1760097488389,2.5536,4352.0,4350.2,0.1144]
[1760097488682,24.60687505,4352.0,4351.5,2.813]
[1760097488846,26.44807905,4352.0,4351.5,2.813]
[1760097489399,28.74587316,4352.0,4351.5,2.813]
[1760097489880,27.89839916,4352.0,4351.5,2.813]
[1760097490175,19.45723799,4352.0,4351.5,2.813]
[1760097490797,5.35024816,4352.0,4351.5,2.813]
[1760097491087,33.22206078,4352.0,4351.5,2.813]
[1760097491292,25.34294778,4352.0,4351.5,2.813]
[1760097491982,31.08706878,4352.0,4351.5,2.813]
[1760097492488,27.20869778,4352.0,4351.5,2.813]
[1760097492691,26.59515878,4352.0,4351.5,2.813]
[1760097492988,21.10456578,4352.0,4351.5,2.813]
[1760097493574,21.10376578,4352.0,4351.5,2.813]
[1760097493775,9.05664278,4352.0,4351.5,2.813]
[1760097494079,9.07248778,4352.0,4351.5,2.813]
[1760097494783,7.13068973,4352.0,4351.5,2.813]
[1760097494984,6.98035673,4352.0,4351.5,2.813]
[1760097495189,4.68086973,4352.0,4351.5,2.813]
[1760097495391,6.75986973,4352.0,4351.5,2.813]
[1760097495775,6.75706973,4352.0,4351.5,2.813]
[1760097496001,7.38046273,4352.0,4351.5,2.813]
[1760097496478,4.68086973,4352.0,4351.5,2.813]
[1760097496681,4.22059411,4352.0,4351.5,2.83598058]
[1760097496992,4.21779411,4352.0,4351.5,2.813]
[1760097499212,4.22059411,4352.0,4351.5,2.813]
[1760097500819,4.22059411,4352.0,4351.5,2.83598058]
[1760097501020,4.21779411,4352.0,4351.8,0.001]
[1760097501209,4.22059411,4352.0,4351.8,0.001]
[1760097502420,4.91155257,4352.0,4351.8,0.001]
[1760097502620,4.22059411,4352.0,4351.8,0.001]
[1760097504116,4.22059411,4352.0,4351.9,3.459]
[1760097504320,22.33210811,4352.0,4351.9,3.459]
[1760097504524,17.94281011,4352.0,4351.9,3.459]
[1760097505234,18.13281011,4352.0,4351.9,3.459]
[1760097506233,16.21281011,4352.0,4351.9,3.459]
[1760097506537,18.13281011,4352.0,4351.9,3.459]
[1760097507221,13.94704211,4352.0,4351.9,3.459]
[1760097507392,4.22059411,4352.0,4351.9,3.459]
[1760097507754,6.48440411,4352.0,4351.9,3.459]
[1760097508248,1.92,4352.0,4351.9,3.459]
[1760097508410,0.69095846,4352.1,4351.9,4.01937846]
[1760097508828,2.2977273,4352.2,4351.9,4.01937846]
[1760097509027,2.29774676,4352.1,4351.9,4.01937846]
[1760097509347,2.29779411,4352.0,4351.9,0.5384]
[1760097509512,2.29779411,4352.0,4351.9,5.373]
[1760097510211,0.0028,4352.5,4351.9,5.373]
[1760097510411,2.29779411,4352.0,4351.9,0.001]
[1760097510612,2.29779411,4352.0,4351.9,5.374]
[1760097511612,2.29779411,4352.0,4351.9,0.001]
[1760097511813,2.29779411,4352.0,4351.9,4.646]
[1760097513526,2.41219411,4352.0,4351.9,4.646]
[1760097514130,0.1144,4352.0,4351.9,4.646]
[1760097514656,2.41219411,4352.0,4351.9,4.646]
[1760097515435,0.1144,4352.0,4351.9,4.646]
[1760097515621,2.41219411,4352.0,4351.9,4.646]
[1760097515857,2.41139411,4352.0,4351.9,4.646]
[1760097517085,0.1136,4352.0,4351.9,4.646]
[1760097517506,2.41139411,4352.0,4351.9,4.646]
[1760097518466,2.41339411,4352.0,4351.9,4.646]
[1760097520178,2.41619411,4352.0,4351.9,4.646]
[1760097521413,2.41619411,4352.0,4351.9,5.373]
[1760097523522,2.41339411,4352.0,4351.9,5.373]
[1760097525222,0.1156,4352.0,4351.9,5.373]
[1760097525591,2.41339411,4352.0,4351.9,5.373]
[1760097527738,0.1156,4352.0,4351.9,5.373]
[1760097527943,2.41339411,4352.0,4351.9,5.373]
[1760097530742,2.41619411,4352.0,4351.9,5.373]
[1760097531298,2.41339411,4352.0,4351.9,5.373]
[1760097532099,2.41619411,4352.0,4351.9,5.373]
[1760097533312,2.41339411,4352.0,4351.9,5.373]
[1760097534901,2.41619411,4352.0,4351.9,5.373]
[1760097536226,2.41339411,4352.0,4351.9,5.373]
[1760097536399,2.41619411,4352.0,4351.9,5.373]
[1760097536599,3.10711915,4352.0,4351.9,5.373]
[1760097536843,29.00103173,4352.0,4351.9,5.373]
[1760097537800,29.00023173,4352.0,4351.9,5.373]
[1760097538928,29.00023173,4352.0,4351.9,0.001]
[1760097539246,28.30930669,4352.0,4351.9,3.459]
[1760097541553,26.21599069,4352.0,4351.9,3.459]
[1760097543752,28.13599069,4352.0,4351.9,3.459]
[1760097544811,27.58719069,4352.0,4351.9,3.459]
[1760097548261,25.84150869,4352.0,4351.9,3.459]
[1760097550063,25.84150869,4352.0,4351.9,3.458]
[1760097550064,20.78781169,4352.0,4351.9,3.458]
[1760097550255,21.40675052,4352.0,4351.9,3.458]
[1760097550430,20.78781169,4352.0,4351.9,3.458]
[1760097550627,21.47878447,4352.0,4351.9,3.458]
[1760097550852,22.0977233,4352.0,4351.9,3.458]
[1760097551055,23.6509733,4352.0,4351.9,0.001]
[1760097551269,23.6509733,4352.0,4351.9,3.458]
[1760097551571,23.15214808,4352.0,4351.9,3.458]
[1760097551927,5.64279308,4352.0,4351.9,3.458]
[1760097552272,31.10448008,4352.0,4351.9,3.458]
[1760097552445,29.34974708,4352.0,4351.9,3.458]
[1760097552647,28.84269008,4352.0,4351.9,3.458]
[1760097552860,22.07273908,4352.0,4351.9,3.458]
[1760097553057,25.73661508,4352.0,4351.9,3.458]
[1760097553473,26.35694968,4352.0,4351.9,3.458]
[1760097554137,31.30923668,4352.0,4351.9,3.458]
[1760097554336,30.68890208,4352.0,4351.9,3.458]
[1760097555079,30.68890208,4352.0,4351.9,0.001]
[1760097555245,32.17052008,4352.0,4351.9,0.001]
[1760097556181,5.64279308,4352.0,4351.9,0.001]
[1760097556362,35.64279308,4352.0,4351.9,0.001]
[1760097556562,42.74279308,4352.0,4351.9,0.001]
[1760097558293,35.44699008,4352.0,4351.9,0.001]
[1760097558788,18.43409721,4352.0,4351.9,0.001]
[1760097558998,19.25980908,4352.0,4351.9,0.001]
[1760097559161,12.50987947,4352.0,4351.9,0.001]
[1760097559569,12.50707947,4352.0,4351.9,0.001]
[1760097559767,11.81530669,4352.0,4351.9,0.001]
[1760097560260,11.81810669,4352.0,4351.9,0.001]
[1760097566099,31.25057369,4352.0,4351.9,0.001]
[1760097566299,31.02089469,4352.0,4351.9,0.001]
[1760097566503,29.93844169,4352.0,4351.9,0.001]
[1760097566701,28.02671169,4352.0,4351.9,0.001]
[1760097567106,26.56030869,4352.0,4351.9,0.001]
[1760097568199,15.32459469,4352.0,4351.9,0.001]
[1760097569092,17.91756769,4352.0,4351.9,0.001]
[1760097570099,15.78540669,4352.0,4351.9,0.001]
[1760097570503,11.81810669,4352.0,4351.9,0.001]
[1760097570703,2.41751258,4352.0,4351.9,0.001]
[1760097570872,1.9212,4352.0,4351.9,0.001]
[1760097571213,2.29899411,4352.0,4351.9,0.001]
[1760097572820,2.30179411,4352.0,4351.9,0.001]
[1760097574719,34.22179411,4352.0,4351.9,0.001]
[1760097575022,29.73518587,4352.0,4351.9,0.001]
[1760097575422,28.80819387,4352.0,4351.9,2.686]
[1760097576121,18.43967587,4352.0,4351.9,0.001]
[1760097576301,16.22748387,4352.0,4351.9,3.458]
[1760097576618,16.31961272,4352.0,4351.9,0.001]
[1760097576818,16.31961272,4352.0,4351.9,3.458]
[1760097577020,18.06757272,4352.0,4351.9,3.458]
[1760097577921,15.73251372,4352.0,4351.9,3.458]
[1760097578225,18.88769272,4352.0,4351.9,3.458]
[1760097579001,4.81011872,4352.0,4351.9,3.458]
[1760097579225,19.01882072,4352.0,4351.9,3.458]
[1760097580119,19.01810872,4352.0,4351.9,3.458]
[1760097580724,19.01810872,4352.0,4351.9,0.001]
[1760097581127,4.81011872,4352.0,4351.9,0.001]
[1760097581297,34.81011872,4352.0,4351.9,0.001]
[1760097581994,34.80931872,4352.0,4351.9,0.001]
[1760097584624,17.08607872,4352.0,4351.9,0.001]
[1760097585398,28.24605072,4352.0,4351.9,0.001]
[1760097586402,28.42052272,4352.0,4351.9,0.001]
[1760097587511,29.73547472,4352.0,4351.9,0.001]
[1760097588342,30.35544885,4352.0,4351.9,0.001]
[1760097589108,28.55407785,4352.0,4351.9,0.001]
[1760097589308,27.28196785,4352.0,4351.9,0.001]
[1760097589530,27.78784785,4352.0,4351.9,0.001]
[1760097590342,27.16787372,4352.0,4351.9,0.001]
[1760097590511,27.34056372,4352.0,4351.9,0.001]
[1760097591719,28.71470972,4352.0,4351.9,0.001]
[1760097592721,28.70204672,4352.0,4351.9,0.001]
[1760097593154,24.96072785,4352.0,4351.9,0.001]
[1760097593312,24.46087052,4352.0,4351.9,0.001]
[1760097593813,34.92943552,4352.0,4351.9,0.001]
[1760097594739,4.92943552,4352.0,4351.9,0.001]
[1760097594945,34.92943552,4352.0,4351.9,0.001]
[1760097596343,35.20484616,4352.0,4351.9,0.001]
[1760097596642,34.92943552,4352.0,4351.9,0.001]
[1760097597448,42.66303552,4352.0,4351.9,0.001]
[1760097597743,2.93165814,4351.5,4351.4,0.001]
[1760097597932,15.48672952,4351.5,4351.4,0.001]
[1760097598140,15.48952952,4351.5,4351.4,0.001]
[1760097598648,11.877584,4351.5,4351.4,0.001]
[1760097598860,11.880384,4351.5,4351.4,0.001]
[1760097599064,16.85917147,4351.5,4351.4,0.001]
[1760097599356,16.23891899,4351.5,4351.4,0.001]
[1760097599556,8.93146299,4351.5,4351.4,0.001]
[1760097599716,7.15519737,4351.5,4351.4,0.001]
[1760097599919,18.29964237,4351.5,4351.4,0.001]
[1760097600252,2.88640037,4351.5,4351.4,0.001]
[1760097600451,2.39020461,4351.5,4351.4,0.001]
[1760097601043,2.88640037,4351.5,4351.4,0.001]
[1760097601641,0.09214647,4351.5,4351.4,0.001]
[1760097602418,4.71397102,4351.9,4351.4,0.001]
[1760097602623,2.29799749,4351.7,4351.4,0.001]
[1760097602853,1.92,4351.7,4351.4,0.001]
[1760097603166,2.29802869,4351.6,4351.4,0.001]
[1760097603479,0.4651,4351.8,4351.4,0.001]
[1760097603763,2.29805814,4351.5,4351.4,0.001]
[1760097604123,10.7976074,4351.5,4351.4,2.829]
[1760097604332,26.55102665,4351.5,4351.4,2.829]
[1760097605156,26.30209565,4351.5,4351.4,2.829]
[1760097605358,26.16437765,4351.5,4351.4,2.829]
[1760097605522,23.12906765,4351.5,4351.4,2.829]
[1760097606577,10.51808465,4351.5,4351.4,2.829]
[1760097607334,6.92133565,4351.5,4351.4,2.829]
[1760097607540,5.92951403,4351.5,4351.4,2.829]
[1760097607772,5.71004803,4351.5,4351.4,2.829]
[1760097607985,2.79627303,4351.5,4351.4,2.829]
[1760097608183,6.63941414,4351.5,4351.4,2.829]
[1760097608372,7.82666866,4351.5,4351.4,2.829]
[1760097608540,7.38366866,4351.5,4351.4,2.829]
[1760097608740,6.91266866,4351.5,4351.4,2.829]
[1760097609053,3.48451266,4351.5,4351.4,2.829]
[1760097609979,0.0004,4352.0,4351.4,3.1129]
[1760097610177,0.1148,4352.0,4351.5,0.02298058]
[1760097610377,0.1148,4352.0,4351.5,0.4551]
[1760097610970,2.29804153,4351.6,4351.4,0.2849]
[1760097611142,2.30080533,4351.6,4351.5,5.373]
[1760097611346,2.29800533,4351.6,4351.5,5.373]
[1760097611938,2.29805814,4351.5,4351.4,0.001]
[1760097612143,2.41525814,4351.5,4351.4,5.374]
[1760097612575,2.41525814,4351.5,4351.4,0.001]
[1760097612781,9.80906971,4351.5,4351.4,5.373]
[1760097613297,5.23917671,4351.5,4351.4,5.374]
[1760097613469,2.41525814,4351.5,4351.4,5.374]
[1760097613706,0.1144,4351.5,4351.4,5.374]
[1760097614881,2.61097596,4351.8,4351.4,5.374]
[1760097614882,2.98892361,4351.8,4351.4,5.374]
[1760097615087,2.98892361,4351.8,4351.5,0.02298058]
[1760097615088,2.29797044,4351.7,4351.5,0.02298058]
[1760097615420,0.1144,4351.8,4351.5,0.02298058]
[1760097615776,2.41230313,4351.8,4351.5,0.02298058]
[1760097615976,2.41230313,4351.8,4351.4,5.374]
[1760097616321,2.41230941,4351.8,4351.5,0.02298058]
[1760097616616,0.1144,4351.8,4351.5,0.02298058]
[1760097617699,0.1144,4351.8,4351.6,0.4551]
[1760097617904,0.1144,4351.8,4351.7,0.02297952]
[1760097619273,2.41229971,4351.8,4351.7,0.02297952]
[1760097619469,2.29796079,4351.7,4351.5,0.02298058]
[1760097619711,2.41231131,4351.8,4351.5,0.02298058]
[1760097620205,2.41230765,4351.8,4351.5,0.02298058]
[1760097620507,0.1144,4351.8,4351.5,0.02298058]
[1760097620817,2.29798855,4351.7,4351.5,0.02298058]
[1760097621001,0.0004,4352.0,4351.6,0.4551]
[1760097621235,0.0004,4352.0,4351.7,0.47807952]
[1760097621743,0.0004,4352.0,4351.7,0.02297952]
[1760097622146,0.0004,4352.0,4351.8,0.02297899]
[1760097622361,0.0004,4352.0,4351.9,3.459]
[1760097622542,2.29819411,4352.0,4351.9,3.459]
[1760097623626,2.29819411,4352.0,4351.9,3.44810818]
[1760097624743,2.29819411,4352.0,4351.9,3.458]
[1760097624949,2.29819411,4352.0,4351.9,5.372]
[1760097626248,2.29739411,4352.0,4351.9,5.372]
[1760097627462,0.0028,4352.0,4351.9,3.458]
[1760097627747,0.0028,4352.0,4351.9,5.372]
[1760097627748,2.30059411,4352.0,4351.9,5.372]
[1760097628533,4.71643155,4352.0,4351.9,5.372]
[1760097630661,4.71643155,4352.0,4351.4,0.001]
[1760097630662,2.29805577,4351.6,4351.4,0.001]
[1760097630858,2.29805577,4351.6,4351.5,5.372]
[1760097631063,2.29805577,4351.6,4351.5,5.349021]
[1760097633762,2.29805577,4351.6,4351.5,5.3260431]
[1760097634794,0.1144,4351.7,4351.5,5.3260431]
[1760097634953,0.1144,4351.7,4351.6,0.02298005]
[1760097635353,2.41235252,4351.7,4351.6,0.02298005]
[1760097635553,2.29800533,4351.6,4351.5,5.3260431]
[1760097635868,0.1144,4351.7,4351.5,5.3260431]
[1760097635869,2.41236322,4351.7,4351.5,5.3260431]
[1760097636064,2.29800533,4351.6,4351.5,5.3260431]
[1760097636675,2.29805814,4351.5,4351.4,0.001]
[1760097636879,2.29805814,4351.5,4351.4,5.373]
[1760097637556,2.29805814,4351.5,4351.4,1.915]
[1760097637557,2.30085814,4351.5,4351.4,1.915]
[1760097637757,2.30085814,4351.5,4351.4,0.001]
[1760097637955,27.27839654,4351.5,4351.4,3.459]
[1760097638152,27.27839654,4351.5,4351.4,0.001]
[1760097638153,23.08641122,4351.5,4351.4,0.001]
[1760097638460,25.00641122,4351.5,4351.4,3.401]
[1760097638658,24.32626867,4351.5,4351.4,3.401]
[1760097638881,24.89533267,4351.5,4351.4,3.401]
[1760097639185,24.39411867,4351.5,4351.4,3.401]
[1760097640089,25.38034767,4351.5,4351.4,3.401]
[1760097640590,14.89491667,4351.5,4351.4,3.401]
[1760097641073,12.27756827,4351.5,4351.4,3.401]
[1760097641276,5.40535627,4351.5,4351.4,3.401]
[1760097641870,8.00854627,4351.5,4351.4,3.401]
[1760097642185,7.99259327,4351.5,4351.4,3.401]
[1760097642358,5.40815627,4351.5,4351.4,3.401]
[1760097642557,9.18349127,4351.5,4351.4,3.401]
[1760097643189,9.63589427,4351.5,4351.4,3.401]
[1760097643596,9.63559834,4351.5,4351.4,3.401]
[1760097644100,22.50529534,4351.5,4351.4,3.401]
[1760097644504,20.82408534,4351.5,4351.4,3.401]
[1760097644701,17.67446534,4351.5,4351.4,3.401]
[1760097646065,13.51812734,4351.5,4351.4,3.401]
[1760097646297,12.90414934,4351.5,4351.4,3.401]
[1760097646775,12.90414934,4351.5,4351.4,3.459]
[1760097647171,5.40786034,4351.5,4351.4,3.459]
[1760097647500,17.61249634,4351.5,4351.4,3.459]
[1760097648393,19.23851734,4351.5,4351.4,3.459]
[1760097648802,17.84351734,4351.5,4351.4,3.459]
[1760097649098,17.84351734,4351.5,4351.4,0.001]
[1760097649260,16.73105434,4351.5,4351.4,3.436021]
[1760097650103,5.40426034,4351.5,4351.4,3.436021]
[1760097651305,5.4039815,4351.5,4351.4,3.436021]
[1760097651504,5.4039815,4351.5,4351.4,3.4130431]
[1760097653875,8.3969025,4351.5,4351.4,3.4130431]
[1760097654080,5.4039815,4351.5,4351.4,3.4130431]
[1760097654280,5.4067815,4351.5,4351.4,3.4130431]